Cogmind - Beta 13 @@@ ROGUE MODE // 2024.08.04 @ 12:11:55 Player: yam Result: Destroyed by S-27 Virus with Autogun Performance ------------- Evolutions (6) 3000 Regions Visited (17) 3400 Robots Destroyed (81) 405 Value Destroyed (2307) 2307 Prototype IDs (43) 860 Alien Tech Used (0) 0 Bonus (1433) 1433 TOTAL SCORE: 11405 Bonus ------- Follower Combat Kills 533 Aligned with FarCom 300 Met Data Miner 300 Met Imprinter 300 Cogmind --------- Core Integrity 0/1150 Matter 147/300 Energy 98/100 System Corruption 9% Temperature Cool (0) Movement Core (50) Location -4/Upper Caves Parts ------- > --- POWER (2) -------- (None) > --- PROPULSION (5) --- (None) > --- UTILITY (8) ------ Signal Interpreter Advanced Hacking Suite Advanced System Shield > --- WEAPON (4) ------- (None) > --- INVENTORY (5) ---- Fission Core Gravmag Array Component Analysis Suite Peak State ------------ > --- POWER ------------ Fission Core Improved Fusion Compressor > --- PROPULSION ------- Antigrav System Gyrokinetic Inverter Linear Gravjet Cooled Gravmag System Improved Linear Gravjet > --- UTILITY ---------- Signal Interpreter Improved Transmission Jammer Advanced ECM Suite Advanced Hacking Suite System Shield Advanced System Shield Advanced System Shield Trap Reconfigurator > --- WEAPON ----------- Enhanced Gauss Cannon > --- INVENTORY -------- Light Angular Momentum Engine Medium Storage Unit Component Analysis Suite Improved System Restoration Module [Rating: 92] Favorites ----------- Power Light Angular Momentum Engine Engine Light Angular Momentum Engine Power Core Micro Nuclear Core Propulsion Gravmag Array Leg Armored Leg Wheel Wheel Hover Unit Gravmag Array Flight Unit Cesium-ion Thruster Utility Signal Interpreter Device Advanced ECM Suite Storage Medium Storage Unit Processor Signal Interpreter Hackware Advanced System Shield Protection Improved Heavy Armor Plating Weapon Light Assault Rifle Energy Gun High-powered Shock Rifle Ballistic Gun Light Assault Rifle Ballistic Cannon Enhanced Gauss Cannon Launcher Rocket Launcher Special Weapon Mining Laser Impact Weapon Heavy Flail Slashing Weapon Power Sword Piercing Weapon CR-A16's Pointy Stick Special Melee Weapon Improved Datajack Build | -11 -10 -10 -10 -9 -8 -7 -7 -7 -6 -6 -6 -6 -6 -5 -5 -4 -4 ------- Run | Yrd Mat Min Exi Min Mat Fac Low Zio Pro Fac Low Low Dat Pro Fac Fac Upp Slots Evolved 12 | . . . . . 4 2 . . . 2 . . . . 2 2 . Power 1 | . . . . . . . . . . . . . . . 1 . . Propulsion 3 | . . . . . 1 1 . . . . . . . . 1 . . Utility 6 | . . . . . 2 1 . . . 1 . . . . . 2 . Weapon 2 | . . . . . 1 . . . . 1 . . . . . . . Parts Attached 129 | 9 7 10 2 1 13 16 . 2 3 19 1 2 . 9 9 23 3 Power 15 | 1 1 2 1 . . 1 . . 1 2 . . . 1 1 3 1 Engine 10 | 1 . 2 1 . . . . . . 2 . . . 1 1 1 1 Core 5 | . 1 . . . . 1 . . 1 . . . . . . 2 . Reactor . | . . . . . . . . . . . . . . . . . . Propulsion 38 | 4 2 4 1 . 7 3 . . . 7 . . . 1 2 6 1 Treads . | . . . . . . . . . . . . . . . . . . Leg 1 | . . . . . . . . . . 1 . . . . . . . Wheel 10 | 4 . 2 1 . 3 . . . . . . . . . . . . Hover 20 | . 2 . . . 1 1 . . . 6 . . . 1 2 6 1 Flight 7 | . . 2 . . 3 2 . . . . . . . . . . . Utility 45 | 2 3 1 . 1 2 8 . 1 . 6 . 2 . 3 4 12 . Device 26 | 1 1 1 . 1 2 4 . . . 3 . 1 . 1 1 10 . Storage 5 | 1 . . . . . 1 . . . 1 . . . . . 2 . Processor 3 | . 2 . . . . . . . . . . . . 1 . . . Hackware 4 | . . . . . . . . . . . . . . 1 3 . . Protection 7 | . . . . . . 3 . 1 . 2 . 1 . . . . . Artifact . | . . . . . . . . . . . . . . . . . . Weapon 31 | 2 1 3 . . 4 4 . 1 2 4 1 . . 4 2 2 1 Energy Gun 8 | 1 1 . . . 3 1 . . . 1 . . . 1 . . . Energy Cannon . | . . . . . . . . . . . . . . . . . . Ballistic Gun 12 | 1 . 2 . . . 2 . . . . 1 . . 3 2 1 . Ballistic Cannon 2 | . . . . . . . . . . . . . . . . 1 1 Launcher 2 | . . . . . 1 . . . 1 . . . . . . . . Special Weapon 1 | . . 1 . . . . . . . . . . . . . . . Impact Weapon 2 | . . . . . . . . . . 2 . . . . . . . Slashing Weapon 1 | . . . . . . . . . . 1 . . . . . . . Piercing Weapon 2 | . . . . . . . . 1 1 . . . . . . . . Special Melee Weapon 1 | . . . . . . 1 . . . . . . . . . . . Unidentified Prototypes 5 | . . 1 . . . 1 . . . 1 . . . . 2 . . Parts Lost 68 | . 2 6 . . 13 1 . 4 9 1 5 . . 10 . 7 10 Power 8 | . 1 1 . . 1 . . . 2 . 1 . . 1 . . 1 Propulsion 24 | . 1 3 . . 6 . . 1 3 1 1 . . 2 . 1 5 Utility 16 | . . 1 . . 1 . . 2 1 . 2 . . 3 . 3 3 Weapon 20 | . . 1 . . 5 1 . 1 3 . 1 . . 4 . 3 1 Highest Loss Streak 9 | . 1 2 . . 5 1 . 4 5 1 4 . . 9 . 4 5 To Critical Strikes 1 | . . . . . . . . . 1 . . . . . . . . Average Slot Usage (%) 63 | . 82 84 87 85 38 83 100 98 44 52 44 26 33 44 28 70 41 Engine 4 | . 5 6 8 14 1 . . . . 5 5 . . 1 . 3 . Core 2 | . 8 5 . . . 6 7 7 3 . . . . . . 4 1 Wheel 3 | . 5 11 4 14 5 . . . . . . . . . . . . Hover 8 | . 6 5 . . . . . . . 17 11 6 6 10 3 20 7 Flight 4 | . . 3 16 . 2 26 30 29 13 . . . . . . . . Device 8 | . 14 13 14 14 5 11 15 14 5 5 4 . . 3 1 8 5 Processor 8 | . 12 14 14 14 9 7 7 7 7 6 6 6 6 7 5 5 5 Hackware 4 | . . . . . . . . . . . . . . 3 9 21 19 Protection 2 | . . . . . . 12 15 14 4 5 1 . 6 4 . . . Energy Gun 3 | . 14 3 . . 6 5 . . . 2 4 . . 4 . . . Ballistic Gun 8 | . 14 14 28 28 5 5 15 14 3 . . 6 6 . 6 5 . Slashing Weapon 1 | . . . . . . . . . . . 6 6 6 4 . . . Naked Turns . | . . . . . . . . . . . . . . . . . . Heaviest Build 42 | 6 9 9 9 9 9 21 20 22 16 36 35 7 7 19 18 40 42 Greatest Support 52 | 26 12 20 10 10 20 22 22 22 17 40 40 20 20 20 22 52 41 Greatest Overweight (x) 10 | . 2 2 2 . 2 . . . 3 10 . . . 2 1 1 3 Average Overweight (x) . | . . . . . . . . . . . . . . . . . . Largest Inventory Capacity 10 | 8 5 5 5 5 5 8 5 5 5 10 5 5 5 5 5 10 10 Average Capacity 5 | 5 5 5 5 5 5 5 5 5 5 5 5 5 5 5 5 5 6 Most Carried 6 | 2 5 5 5 4 5 5 5 5 5 5 4 4 4 5 5 6 6 Average Carried 4 | 1 4 4 4 4 3 4 5 4 4 4 4 3 4 3 4 3 4 Final Capacity 10 | 5 5 5 5 5 5 5 5 5 5 5 5 5 5 5 5 10 5 Final Carried 6 | 2 5 5 4 4 4 5 5 5 4 4 4 4 4 5 5 6 4 Class Distribution -------------------- 39% | Mutant 20% | Scavenger-Mutant 15% | Hacker-Mutant 8% | Sprinter 7% | Scavenger-Skirmisher 4% | Scout Dominant Class ---------------- Mutant | -10/Materials Scavenger-Mutant | -10/Mines Scavenger-Mutant | -10/Exiles Scavenger-Skirmisher | -9/Mines Mutant | -8/Materials Scout | -7/Factory Scout | -7/Lower Caves Sprinter | -7/Zion Mutant | -6/Proximity Caves Mutant | -6/Factory Mutant | -6/Lower Caves Mutant | -6/Lower Caves Mutant | -6/Data Miner Scavenger-Mutant | -5/Proximity Caves Mutant | -5/Factory Hacker-Mutant | -4/Factory Hacker-Mutant | -4/Upper Caves Resources | -11 -10 -10 -10 -9 -8 -7 -7 -7 -6 -6 -6 -6 -6 -5 -5 -4 -4 ----------- Run | Yrd Mat Min Exi Min Mat Fac Low Zio Pro Fac Low Low Dat Pro Fac Fac Upp Matter Collected 2393 | 304 74 189 . 165 83 353 . 48 81 165 75 24 . 114 125 329 264 Remotely . | . . . . . . . . . . . . . . . . . . Salvage Created 2754 | 81 348 151 . 115 205 345 . . 149 325 209 . . 369 79 330 48 Parts 162 | 3 30 14 . 14 17 20 . . 5 7 5 . . 15 2 29 1 Haulers Intercepted 1 | . . . . . . . . . . 1 . . . . . . . Recyclers Shooed 2 | 1 1 . . . . . . . . . . . . . . . . Parts Field Recycled . | . . . . . . . . . . . . . . . . . . Retrieved Matter . | . . . . . . . . . . . . . . . . . . Parts Self-Destructed 36 | . . . . . . . . . 8 . 7 9 . 11 . . 1 Prevented . | . . . . . . . . . . . . . . . . . . Kills | -11 -10 -10 -10 -9 -8 -7 -7 -7 -6 -6 -6 -6 -6 -5 -5 -4 -4 ------- Run | Yrd Mat Min Exi Min Mat Fac Low Zio Pro Fac Low Low Dat Pro Fac Fac Upp Combat Hostiles Destroyed 48 | . 8 6 . 5 6 5 . . 3 3 3 . . 6 1 1 1 Melee 8 | . . . . . . . . . 1 . 2 . . 5 . . . Guns 32 | . 8 6 . 5 4 5 . . . . 1 . . 1 1 1 . Cannons 1 | . . . . . . . . . . . . . . . . . 1 AOE 4 | . . . . . 2 . . . 2 . . . . . . . . Classes Destroyed 14 | 2 3 2 . 1 1 1 . . 1 2 . . . . 1 . . Worker 10 | . . 2 . 2 2 . . . . . . . . . . 4 . Builder 9 | . . 1 . . 2 . . . . 1 . . . . . 5 . Tunneler 2 | 1 . . . . . 1 . . . . . . . . . . . Hauler 1 | . . . . . . . . . . 1 . . . . . . . Recycler 3 | 1 . . . . . 1 . . . . . . . . . 1 . Operator 1 | . . . . . . . . . . 1 . . . . . . . Watcher 9 | . 3 . . . . 3 . . . 1 . . . . . 2 . Swarmer 19 | . 3 5 . 1 3 4 . . . . 3 . . . . . . Grunt 15 | . 5 1 . 2 2 . . . 2 . . . . 3 . . . Brawler 1 | . . . . . . . . . . . . . . . 1 . . Hunter 8 | . . . . . 1 . . . 1 3 . . . 2 . 1 . Programmer 3 | . . . . . . 1 . . . . . . . 1 . . 1 Samaritan 1 | . . . . . . . . . 1 . . . . . . . . Assembled 2 | . . . . 2 . . . . . . . . . . . . . Best Kill Streak 9 | 1 4 3 . 2 6 4 . . 2 2 3 . . 2 1 9 1 Combat Bots Only 4 | . 3 3 . 2 3 4 . . 2 2 3 . . 2 1 1 1 Max Kills in Single Turn 8 | 1 1 1 . 1 3 1 . . 1 1 1 . . 1 1 8 1 Gunslinging . | . . . . . . . . . . . . . . . . . . Exploded 1 | . . . . . 1 . . . 1 . . . . . . . . Melee 1 | . . . . . . . . . 1 . 1 . . 1 . . . Uniques/NPCs Destroyed . | . . . . . . . . . . . . . . . . . . Combat | -11 -10 -10 -10 -9 -8 -7 -7 -7 -6 -6 -6 -6 -6 -5 -5 -4 -4 -------- Run | Yrd Mat Min Exi Min Mat Fac Low Zio Pro Fac Low Low Dat Pro Fac Fac Upp Hostile Shots Fired 781 | . 37 52 . 7 133 34 2 26 50 68 69 19 . 66 24 79 115 Missed 245 | . 10 15 . 1 43 8 . 12 13 25 23 10 . 8 11 25 41 Damage Taken 8407 | . 285 348 . 77 1216 390 29 315 605 756 729 94 . 930 217 1004 1412 Core 3140 | . 95 97 . 23 492 59 . 20 263 129 181 35 . 397 197 192 960 Absorbed by Shields . | . . . . . . . . . . . . . . . . . . Redirected to Shielding 151 | . . . . . . 39 9 26 34 . . . . 43 . . . Ignored by Resistances 70 | . . . . . . . . . . . . . . . . 70 . Core Remaining (%) 44 | 100 . . . 14 10 . . . 51 . . . . 12 80 . . Volleys Fired 262 | 14 32 53 . 24 29 42 . . 6 1 6 . . 13 6 21 15 Largest 3 | 2 2 2 . 2 3 2 . . 1 1 1 . . 1 2 3 1 Hottest 139 | 60 70 120 . 40 139 125 . . 33 60 60 . . 60 56 84 57 Shots Fired 409 | 28 65 60 . 48 39 71 . . 6 1 6 1 . 13 9 47 15 Gun 358 | 28 65 45 . 48 31 71 . . . 1 6 1 . 13 9 40 . Cannon 22 | . . . . . . . . . . . . . . . . 7 15 Launcher 14 | . . . . . 8 . . . 6 . . . . . . . . Special 15 | . . 15 . . . . . . . . . . . . . . . Kinetic 272 | 14 33 33 . 48 11 48 . . . . 3 1 . 10 9 47 15 Thermal 116 | 14 32 27 . . 20 23 . . . . . . . . . . . Explosive 14 | . . . . . 8 . . . 6 . . . . . . . . Electromagnetic 7 | . . . . . . . . . . 1 3 . . 3 . . . Robot Hit Streak 11 | 5 11 5 . 5 5 6 . . 4 . 1 . . 3 3 10 2 Robot Miss Streak 7 | 2 3 4 . 7 3 5 . . 2 . 2 . . 1 2 5 2 Penetration Max . | . . . . . . . . . . . . . . . . . . Secondary Targets 3 | . 3 . . . . . . . . . . . . . . . . Max Gunslinging Chain 1 | . 1 . . . . . . . . . . . . . . . . Shots Hit Robots 261 | 17 40 24 . 23 25 44 . . 5 12 12 . . 21 6 26 6 Core Hits 138 | 4 23 10 . 11 17 15 . . 9 3 6 . . 12 1 24 3 Critical Kills 1 | . . . . . . . . . . 1 . . . . . . . Critical Parts Destroyed 4 | . . . . . . . . . . 4 . . . . . . . Critical Strikes 16 | . . 1 . . 3 . . . 1 5 1 . . 3 . 2 . Burn 4 | . . 1 . . 3 . . . . . . . . . . . . Blast 2 | . . . . . . . . . . . . . . . . 2 . Smash 5 | . . . . . . . . . . 5 . . . . . . . Sever 4 | . . . . . . . . . . . 1 . . 3 . . . Impale 1 | . . . . . . . . . 1 . . . . . . . . Melee Attacks 72 | . . . . . . 9 . . 4 23 18 . . 18 . . . Impact 23 | . . . . . . . . . . 23 . . . . . . . Slashing 36 | . . . . . . . . . . . 18 . . 18 . . . Piercing 4 | . . . . . . . . . 4 . . . . . . . . Sneak Attacks 8 | . . . . . . 6 . . . 2 . . . . . . . Combat Hostiles . | . . . . . . . . . . . . . . . . . . Follow-up Attacks . | . . . . . . . . . . . . . . . . . . Damage Inflicted 6367 | 166 442 306 . 260 621 668 . . 334 649 584 . . 691 131 1267 248 Guns 2749 | 166 431 282 . 260 243 668 . . . . 38 . . 130 131 400 . Cannons 393 | . . . . . . . . . . . . . . . . 155 238 Explosions 1338 | . . . . . 372 . . . 255 . . . . . . 711 . Melee 1817 | . . . . . . . . . 75 649 546 . . 547 . . . Ramming 46 | . 11 . . . 6 . . . 4 . . . . 14 . 1 10 Kinetic 2198 | 88 169 184 . 260 59 418 . . . . 17 . . 79 131 555 238 Thermal 896 | 78 262 122 . . 184 250 . . . . . . . . . . . Explosive 1338 | . . . . . 372 . . . 255 . . . . . . 711 . Electromagnetic 72 | . . . . . . . . . . . 21 . . 51 . . . Impact 649 | . . . . . . . . . . 649 . . . . . . . Slashing 1093 | . . . . . . . . . . . 546 . . 547 . . . Piercing 75 | . . . . . . . . . 75 . . . . . . . . Highest Corruption 9 | . 1 1 1 1 1 1 1 1 1 1 1 1 1 6 . 4 9 Average Corruption 1 | . 1 1 1 1 1 1 1 1 1 1 1 1 1 2 . 2 7 Corruption Purged . | . . . . . . . . . . . . . . . . . . Corruption Blocked . | . . . . . . . . . . . . . . . . . . Effects 49 | . 1 6 . 5 1 1 . 1 . 1 3 2 . 8 . 11 9 Message Errors 11 | . . 1 . 2 . 1 . . . . 2 1 . 2 . 1 1 Matter Fused 18 | . . 3 . 2 . . . . . 1 . . . 2 . 3 7 Heat Flow Errors 3 | . . . . 1 . . . 1 . . . . . . . 1 . Energy Discharges 8 | . . 1 . . 1 . . . . . . . . 2 . 3 1 Parts Rejected 1 | . . . . . . . . . . . . . . . . 1 . Data Loss (minor) 4 | . . . . . . . . . . . 1 . . 2 . 1 . Data Loss (major) 1 | . . . . . . . . . . . . . . . . 1 . Misfires 3 | . 1 1 . . . . . . . . . 1 . . . . . Overload Shots . | . . . . . . . . . . . . . . . . . . Overflow Damage 504 | . . 14 . . 17 . . . . 312 70 . . . . 76 15 Projectiles 29 | . . 14 . . . . . . . . . . . . . . 15 Explosions 93 | . . . . . 17 . . . . . . . . . . 76 . Melee 382 | . . . . . . . . . . 312 70 . . . . . . Knockbacks 7 | . . . . . . . . . . 1 . . . . . 4 2 Impact 1 | . . . . . . . . . . 1 . . . . . . . Kinetic 5 | . . . . . . . . . . . . . . . . 3 2 Secondary 1 | . . . . . . . . . . . . . . . . 1 . Self-Inflicted Damage 127 | . 4 . . . 3 . . . 2 . . . . 7 . 106 5 Shots 2 | . . . . . . . . . . . . . . . . 2 . Rammed 13 | . 3 . . . 1 . . . 3 . . . . 3 . 1 2 Targets Rammed 13 | . 3 . . . 1 . . . 3 . . . . 3 . 1 2 Kicked . | . . . . . . . . . . . . . . . . . . Crushed . | . . . . . . . . . . . . . . . . . . Highest Temperature 456 | 80 148 288 . 228 111 456 29 194 12 18 54 . . . . 345 24 Average Temperature 94 | 41 46 109 . 102 43 116 17 100 7 13 23 . . . . 119 6 Received Heat Transfer 1042 | . 120 45 . 12 423 . 36 40 63 . 168 39 . 30 21 45 . Effects 5 | . . . . . . 2 . . . . . . . . . 3 . Shutdowns 1 | . . . . . . 1 . . . . . . . . . . . Energy Bleed 1 | . . . . . . . . . . . . . . . . 1 . Matter Decay 1 | . . . . . . . . . . . . . . . . 1 . Damage (minor) 2 | . . . . . . 1 . . . . . . . . . 1 . Siege Activations . | . . . . . . . . . . . . . . . . . . Robots Corrupted . | . . . . . . . . . . . . . . . . . . Combat Hostiles . | . . . . . . . . . . . . . . . . . . Parts Fried 8 | . . . . . . . . . . 8 . . . . . . . Impact Corruptions 10 | . . . . . . . . . . 10 . . . . . . . Robots Melted . | . . . . . . . . . . . . . . . . . . Combat Hostiles . | . . . . . . . . . . . . . . . . . . Parts Melted 4 | . 1 . . . 1 2 . . . . . . . . . . . Heat Transferred 2488 | 175 635 420 . . 740 518 . . . . . . . . . . . Parts Sabotaged . | . . . . . . . . . . . . . . . . . . Parts Stolen . | . . . . . . . . . . . . . . . . . . Parts Stripped . | . . . . . . . . . . . . . . . . . . Power Chain Reactions . | . . . . . . . . . . . . . . . . . . Alert | -11 -10 -10 -10 -9 -8 -7 -7 -7 -6 -6 -6 -6 -6 -5 -5 -4 -4 ------- Run | Yrd Mat Min Exi Min Mat Fac Low Zio Pro Fac Low Low Dat Pro Fac Fac Upp Peak Influence 462 | 10 195 132 . 137 257 398 . . . 258 . . . . 462 352 . Initial 128 | . 6 38 . . . 116 . . . . . . . . 12 128 . Average 119 | 2 62 71 . 81 65 231 . . . 82 . . . . 200 177 . Maximum Alert Level 2 | . . . . . 1 1 . . . 1 . . . . 2 1 . Low Security (%) 83 | 100 100 100 . 100 95 46 . . . 81 . . . . 74 72 . Level 1 15 | . . . . . 4 53 . . . 18 . . . . 18 27 . Level 2 . | . . . . . . . . . . . . . . . 7 . . Level 3 . | . . . . . . . . . . . . . . . . . . Level 4 . | . . . . . . . . . . . . . . . . . . Level 5 . | . . . . . . . . . . . . . . . . . . High Security . | . . . . . . . . . . . . . . . . . . Max Security . | . . . . . . . . . . . . . . . . . . Squads Dispatched 23 | . . 1 . 1 1 4 . . . 8 . . . . 3 5 . Investigation 11 | . . 1 . . 1 2 . . . 5 . . . . 1 1 . Extermination 3 | . . . . . . 1 . . . . . . . . 1 1 . Reinforcement 9 | . . . . 1 . 1 . . . 3 . . . . 1 3 . Assault . | . . . . . . . . . . . . . . . . . . Garrison . | . . . . . . . . . . . . . . . . . . Intercept . | . . . . . . . . . . . . . . . . . . Searches Triggered . | . . . . . . . . . . . . . . . . . . Data Miner Redirects 2 | . . . . . . . . . . . . . . . 1 1 . Construction Impeded 2 | . . . . 1 . . . . . . . . . . 1 . . Haulers Reinforced . | . . . . . . . . . . . . . . . . . . Active Scanning Responses . | . . . . . . . . . . . . . . . . . . Cargo Convoy Interrupts . | . . . . . . . . . . . . . . . . . . Stealth | -11 -10 -10 -10 -9 -8 -7 -7 -7 -6 -6 -6 -6 -6 -5 -5 -4 -4 --------- Run | Yrd Mat Min Exi Min Mat Fac Low Zio Pro Fac Low Low Dat Pro Fac Fac Upp Distress Signals 4 | . . . . . 1 1 . . . . . . . . . 2 . Communications Jammed 23 | . . . . . . . . . . . . . . . . 23 . Distress Signals 23 | . . . . . . . . . . . . . . . . 23 . Times Spotted 186 | . 14 11 . 13 14 16 3 17 6 17 15 4 . 10 10 23 13 Peak Tracking Total 18 | . 3 3 . 7 7 7 3 18 4 5 4 4 . 5 6 6 6 Tactical Retreats 33 | . . 2 . 1 3 3 . 2 1 3 5 2 . 1 1 5 4 Traps | -11 -10 -10 -10 -9 -8 -7 -7 -7 -6 -6 -6 -6 -6 -5 -5 -4 -4 ------- Run | Yrd Mat Min Exi Min Mat Fac Low Zio Pro Fac Low Low Dat Pro Fac Fac Upp Traps Triggered 7 | . . . . . . . . . . 4 . . . . 2 1 . Indirectly . | . . . . . . . . . . . . . . . . . . Trap Hack Attempts . | . . . . . . . . . . . . . . . . . . Triggered . | . . . . . . . . . . . . . . . . . . Disarmed . | . . . . . . . . . . . . . . . . . . Reprogrammed . | . . . . . . . . . . . . . . . . . . Reused 8 | . . 2 . . 3 2 . . . . . . . . . 1 . Traps Reconfigurated 44 | . . . . . 9 6 . . 20 2 . . . . . 7 . Traps Extracted . | . . . . . . . . . . . . . . . . . . Installed 3 | . . 2 . . 1 . . . . . . . . . . . . Triggered 10 | . . 2 . . 3 2 . . 2 . . . . . . 1 . Most Traps Carried 2 | . . 2 1 1 1 . . . . . . . . . . . . Machines | -11 -10 -10 -10 -9 -8 -7 -7 -7 -6 -6 -6 -6 -6 -5 -5 -4 -4 ---------- Run | Yrd Mat Min Exi Min Mat Fac Low Zio Pro Fac Low Low Dat Pro Fac Fac Upp Machines Disabled 12 | . . . . . . . . . . . . . . . 2 10 . Max in Single Turn 6 | . . . . . . . . . . . . . . . . 6 . Garrison Access 2 | . . . . . . . . . . . . . . . 1 1 . Machines Repaired . | . . . . . . . . . . . . . . . . . . Machines Dismantled . | . . . . . . . . . . . . . . . . . . Machines Sabotaged 1 | . . . . . . . . . . 1 . . . . . . . Overloaded Fab Kills . | . . . . . . . . . . . . . . . . . . Hacking | -11 -10 -10 -10 -9 -8 -7 -7 -7 -6 -6 -6 -6 -6 -5 -5 -4 -4 --------- Run | Yrd Mat Min Exi Min Mat Fac Low Zio Pro Fac Low Low Dat Pro Fac Fac Upp Machines Accessed 42 | . 3 2 3 . 5 5 . . . 9 . . 4 . 4 7 . Terminals 23 | . 2 2 . . 5 2 . . . 6 . . . . 1 5 . Fabricators 6 | . . . . . . 1 . . . 2 . . . . 2 1 . Repair Stations . | . . . . . . . . . . . . . . . . . . Recycling Units 2 | . 1 . . . . . . . . 1 . . . . . . . Scanalyzers 1 | . . . . . . 1 . . . . . . . . . . . Garrison Access 3 | . . . . . . 1 . . . . . . . . 1 1 . Total Hacks 156 | . 7 6 12 . 18 13 . . . 32 . . 30 . 13 25 . Successful 96 | . 4 3 12 . 8 6 . . . 12 . . 30 . 8 13 . Failed 60 | . 3 3 . . 10 7 . . . 20 . . . . 5 12 . Catastrophic 12 | . . 1 . . 1 . . . . 4 . . . . 2 4 . Database Lockouts . | . . . . . . . . . . . . . . . . . . Manual 28 | . 5 6 2 . . 1 . . . 5 . . . . 2 7 . Terminals 77 | . 6 6 . . 18 5 . . . 18 . . . . 4 20 . Fabricators 23 | . . . . . . 4 . . . 7 . . . . 8 4 . Repair Stations . | . . . . . . . . . . . . . . . . . . Recycling Units 8 | . 1 . . . . . . . . 7 . . . . . . . Scanalyzers 2 | . . . . . . 2 . . . . . . . . . . . Garrison Access 4 | . . . . . . 2 . . . . . . . . 1 1 . Terminal Hacks 76 | . 3 3 12 . 8 1 . . . 5 . . 30 . 4 10 . Record 33 | . . . 11 . 2 1 . . . 2 . . 11 . 2 4 . Part Schematic 15 | . 2 2 . . . . . . . . . . 11 . . . . Robot Schematic 6 | . . . . . . . . . . 1 . . 5 . . . . Robot Analysis 1 | . . . . . . . . . . . . . . . . 1 . Prototype ID Bank 5 | . . . . . 1 . . . . . . . 3 . . 1 . Open DSF 2 | . . . . . . . . . . . . . . . . 2 . Branch Access Points 1 | . . . . . 1 . . . . . . . . . . . . Emergency Access Points 2 | . . . . . 1 . . . . . . . . . . 1 . Locate Traps 3 | . . . . . 2 . . . . 1 . . . . . . . Assault Status 1 | . . . . . . . . . . . . . . . . 1 . Recall Investigation 1 | . . . . . . . . . . . . . . . 1 . . Recall Reinforcements 1 | . . . . . . . . . . . . . . . 1 . . Zone Layout 4 | . 1 1 . . 1 . . . . 1 . . . . . . . Derelict Proto ID Bank 1 | . . . 1 . . . . . . . . . . . . . . Fabricator Hacks 10 | . . . . . . 3 . . . 2 . . . . 3 2 . Network Status 1 | . . . . . . 1 . . . . . . . . . . . Load Schematic 6 | . . . . . . 1 . . . 2 . . . . 2 1 . Build 3 | . . . . . . 1 . . . . . . . . 1 1 . Repair Station Hacks . | . . . . . . . . . . . . . . . . . . Recycling Unit Hacks 5 | . 1 . . . . . . . . 4 . . . . . . . Process 1 | . . . . . . . . . . 1 . . . . . . . Report Inventory 2 | . 1 . . . . . . . . 1 . . . . . . . Retrieve Matter 2 | . . . . . . . . . . 2 . . . . . . . Scanalyzer 2 | . . . . . . 2 . . . . . . . . . . . Insert Component 2 | . . . . . . 2 . . . . . . . . . . . Garrison Access Hacks 2 | . . . . . . . . . . . . . . . 1 1 . Seal Access 2 | . . . . . . . . . . . . . . . 1 1 . Unauthorized Hacks 1 | . . . . . . . . . . 1 . . . . . . . Terminals 1 | . . . . . . . . . . 1 . . . . . . . Sabotage 1 | . . . . . . . . . . 1 . . . . . . . Fabricators . | . . . . . . . . . . . . . . . . . . Repair Stations . | . . . . . . . . . . . . . . . . . . Recycling Units . | . . . . . . . . . . . . . . . . . . Scanalyzers . | . . . . . . . . . . . . . . . . . . Garrison Access . | . . . . . . . . . . . . . . . . . . Data Cores Recovered . | . . . . . . . . . . . . . . . . . . Used . | . . . . . . . . . . . . . . . . . . Hacking Detections 28 | . . 2 . . 4 5 . . . 9 . . . . 4 4 . Full Trace Events 11 | . . 2 . . 1 2 . . . 4 . . . . 1 1 . Feedback Events 1 | . . . . . 1 . . . . . . . . . . . . Corruption 1 | . . . . . 1 . . . . . . . . . . . . Feedback Blocked . | . . . . . . . . . . . . . . . . . . Robot Schematics Acquired 6 | . . . . . . . . . . 1 . . 5 . . . . Robots Built 4 | . . . . . . . . . . . . . . . 2 2 . Authchips . | . . . . . . . . . . . . . . . . . . Time 228 | . . . . . . . . . . . . . . . 152 76 . Total Robot Build Rating 20 | . . . . . . . . . . . . . . . 10 10 . Part Schematics Acquired 14 | . 2 1 . . . . . . . . . . 11 . . . . Parts Built 1 | . . . . . . 1 . . . . . . . . . . . Authchips . | . . . . . . . . . . . . . . . . . . Time 51 | . . . . . . 51 . . . . . . . . . . . Total Part Build Rating 1 | . . . . . . 1 . . . . . . . . . . . Parts Repaired . | . . . . . . . . . . . . . . . . . . Time . | . . . . . . . . . . . . . . . . . . Parts Recycled . | . . . . . . . . . . . . . . . . . . Recycled Matter 1 | . . . . . . . . . . 1 . . . . . . . Retrieved Matter 1 | . . . . . . . . . . 1 . . . . . . . Retrieved Components . | . . . . . . . . . . . . . . . . . . Parts Scanalyzed . | . . . . . . . . . . . . . . . . . . Part Schematics Acquired . | . . . . . . . . . . . . . . . . . . Parts Damaged . | . . . . . . . . . . . . . . . . . . Bothacking | -11 -10 -10 -10 -9 -8 -7 -7 -7 -6 -6 -6 -6 -6 -5 -5 -4 -4 ------------ Run | Yrd Mat Min Exi Min Mat Fac Low Zio Pro Fac Low Low Dat Pro Fac Fac Upp Used RIF Installer . | . . . . . . . . . . . . . . . . . . Robots Hacked 4 | . . . . . . 4 . . . . . . . . . . . Non-combat 4 | . . . . . . 4 . . . . . . . . . . . Combat . | . . . . . . . . . . . . . . . . . . Robot Hacks Applied 8 | . . . . . . 8 . . . . . . . . . . . parse_system 3 | . . . . . . 3 . . . . . . . . . . . no_distress 1 | . . . . . . 1 . . . . . . . . . . . find_chute 4 | . . . . . . 4 . . . . . . . . . . . Relay Couplers Released . | . . . . . . . . . . . . . . . . . . Fabnet Peak Effective % . | . . . . . . . . . . . . . . . . . . Robots Rewired . | . . . . . . . . . . . . . . . . . . Allies Hacked . | . . . . . . . . . . . . . . . . . . Hacks Repelled . | . . . . . . . . . . . . . . . . . . Allies | -11 -10 -10 -10 -9 -8 -7 -7 -7 -6 -6 -6 -6 -6 -5 -5 -4 -4 -------- Run | Yrd Mat Min Exi Min Mat Fac Low Zio Pro Fac Low Low Dat Pro Fac Fac Upp Total Allies 9 | . . . . 2 . . . . . . . . . 1 4 2 . Largest Group 3 | . . . . 2 . . . . . . . . . 1 2 3 . Highest-Rated Group 192 | . . . . 50 . . . . . . . . . 96 192 118 . Highest-Rated Ally 96 | . . . . 31 . . . . . . . . . 96 96 41 . Total Orders . | . . . . . . . . . . . . . . . . . . Ally Attacks 93 | . . . . 14 . . . . . . . . . 6 56 17 . Total Damage 3045 | . . . . 209 . . . . . . . . . 270 2181 385 . Kills 24 | . . . . 5 . . . . . . . . . . 17 2 . Allies Corrupted . | . . . . . . . . . . . . . . . . . . Allies Melted 1 | . . . . . . . . . . . . . . 1 . . . Intel | -11 -10 -10 -10 -9 -8 -7 -7 -7 -6 -6 -6 -6 -6 -5 -5 -4 -4 ------- Run | Yrd Mat Min Exi Min Mat Fac Low Zio Pro Fac Low Low Dat Pro Fac Fac Upp Robot Analysis Total 1 | . . . . . . . . . . . . . . . . 1 . Derelict Logs Recovered 8 | . . 1 . 1 . . . 1 . . 2 1 . 2 . . . Drone Launches . | . . . . . . . . . . . . . . . . . . Drone Recoveries . | . . . . . . . . . . . . . . . . . . Exploration | -11 -10 -10 -10 -9 -8 -7 -7 -7 -6 -6 -6 -6 -6 -5 -5 -4 -4 ------------- Run | Yrd Mat Min Exi Min Mat Fac Low Zio Pro Fac Low Low Dat Pro Fac Fac Upp Turns Passed 7775 | 90 673 857 201 492 347 553 15 288 204 829 594 321 54 464 450 1008 335 Spaces Moved 10261 | 47 466 890 356 330 363 1124 51 905 341 1057 892 504 90 617 440 1272 516 Core 1205 | 5 51 84 1 . 158 . . . 92 46 . . . 95 229 . 444 Treads . | . . . . . . . . . . . . . . . . . . Legs 64 | . . . . . . . . . . 64 . . . . . . . Wheels 1179 | 42 197 406 90 330 114 . . . . . . . . . . . . Hover 4911 | . 218 174 . . 9 . . . . 947 892 504 90 522 211 1272 72 Flight 2902 | . . 226 265 . 82 1124 51 905 249 . . . . . . . . Fastest Speed 28 | 50 56 37 37 80 32 28 28 28 32 48 56 60 60 50 50 35 35 Average Speed 53 | 78 104 71 55 80 64 29 28 28 39 60 56 60 60 58 56 44 51 Slowest Speed 550 | 90 150 200 150 80 150 32 28 32 200 550 60 60 60 150 100 101 200 Overloaded Moves 18 | . . . . . . . . . . . . . . . . 18 . Propulsion Burnouts . | . . . . . . . . . . . . . . . . . . Robots Hopped 18 | . . . . . . 18 . . . . . . . . . . . Cave-ins Triggered . | . . . . . . . . . . . . . . . . . . Exploration Rate (%) 51 | 4 64 99 72 48 42 21 16 79 58 23 89 70 75 83 8 23 45 Regions Visited 17 Branch Regions 11 Pre-discovered Areas 4 | . . 1 1 . . . . 1 . . . . 1 . . . . Known Exits Taken 15 | . 1 1 1 1 1 1 1 1 1 1 1 1 1 . 1 1 . Unknown Exits Taken 2 | 1 . . . . . . . . . . . . . 1 . . . Scrap Searched 12 | . . 1 . 1 . . . 4 . . 2 1 . 1 . . 2 Spaces Dug 7 | . . 2 . . . . . . . 4 1 . . . . . . Terrain Destroyed 103 | . . 6 . . 28 . . . 32 4 1 . . . . 22 10 Melee 5 | . . . . . . . . . . 4 1 . . . . . . Projectile 19 | . . 6 . . . . . . . . . . . . . 3 10 AOE 79 | . . . . . 28 . . . 32 . . . . . . 19 . Terrain Rammed . | . . . . . . . . . . . . . . . . . . Walls Destroyed . | . . . . . . . . . . . . . . . . . . Machines Disabled . | . . . . . . . . . . . . . . . . . . Actions | -11 -10 -10 -10 -9 -8 -7 -7 -7 -6 -6 -6 -6 -6 -5 -5 -4 -4 --------- Run | Yrd Mat Min Exi Min Mat Fac Low Zio Pro Fac Low Low Dat Pro Fac Fac Upp Total 11978 | 73 593 1021 360 515 438 1267 50 937 396 1212 949 522 89 676 630 1677 573 Wait 1160 | . 74 55 . 160 23 83 . 22 38 94 31 16 . 14 173 349 28 Move 10209 | 46 465 889 355 329 362 1088 50 904 340 1056 891 503 89 616 439 1271 516 Hop 17 | . . . . . . 17 . . . . . . . . . . . Pick Up 37 | . 6 4 1 . 6 6 . 2 . 4 . . . 1 1 6 . Fast Attach 81 | 7 6 6 . . 6 10 . 5 . 15 1 1 . 7 8 9 . Attach 44 | 2 1 2 2 1 7 4 . . 3 4 . 1 . 2 1 12 2 Detach 33 | 4 2 3 . 1 2 1 . . 2 4 . 1 . 2 1 6 4 Swap 7 | . . 2 . . . 2 . . . . . . . . . 2 1 Drop 38 | . 4 5 2 . 1 5 . 4 . 11 . . . . 1 . 5 Fire 262 | 14 32 53 . 24 29 42 . . 6 1 6 . . 13 6 21 15 Melee 72 | . . . . . . 9 . . 4 23 18 . . 18 . . . Ram 13 | . 3 . . . 1 . . . 3 . . . . 3 . 1 2 Kick . | . . . . . . . . . . . . . . . . . . Crush . | . . . . . . . . . . . . . . . . . . Escape Stasis . | . . . . . . . . . . . . . . . . . . Rewire 2 | . . . . . . . . . . . 2 . . . . . . Trap 3 | . . 2 . . 1 . . . . . . . . . . . . Miscellaneous . | . . . . . . . . . . . . . . . . . . Route ------- -11/Scrapyard -10/Materials (discovered 4 exits: *Mat x3 / *Min) -10/Mines (discovered 4 exits: *Mat x2 / *Exi / *Sub) -10/Exiles (discovered 2 exits: *Min x2) -9/Mines -8/Materials (discovered 2 exits: *Fac x2) -7/Factory -7/Lower Caves -7/Zion -6/Proximity Caves -6/Factory -6/Lower Caves -6/Lower Caves -6/Data Miner -5/Proximity Caves -5/Factory (discovered 2 exits: *Fac / Upp) -4/Factory (discovered 2 exits: *Res / *Upp) -4/Upper Caves History --------- Turn | Location | Event 10 | -11/Scrapyard | Discovered new exit (range 15) 91 | -11/Scrapyard | Entered Materials 106 | -10/Materials | Discovered new exit (range 11) 170 | -10/Materials | Discovered new exit (range 13) 273 | -10/Materials | Discovered new exit (range 12) 304 | -10/Materials | Build established: Mutant 643 | -10/Materials | Discovered new exit (range 5) 647 | -10/Materials | Identified exit to Materials 758 | -10/Materials | Build established: Scavenger-Mutant 763 | -10/Materials | Identified exit to Mines 764 | -10/Materials | Entered Mines 852 | -10/Mines | Discovered new exit (range 3) 856 | -10/Mines | Identified exit to Subcaves 899 | -10/Mines | Found a hidden stash of uninstalled traps 1152 | -10/Mines | Core integrity fell below 50% 1243 | -10/Mines | Deemed a non-threat by the Exiles lab entrance 1243 | -10/Mines | Discovered new exit (range 5) 1245 | -10/Mines | Identified exit to Exiles 1408 | -10/Mines | Discovered exit to Materials (range 12) 1415 | -10/Mines | Discovered exit to Materials (range 10) 1467 | -10/Mines | Found a damaged Exp. Sensor Array with a note attached 1468 | -10/Mines | Found Prototype Device 1469 | -10/Mines | Identified Exp. Sensor Array 1621 | -10/Mines | Entered Exiles 1627 | -10/Exiles | Discovered new exit (range 15) 1631 | -10/Exiles | Identified exit to Mines 1640 | -10/Exiles | Met 8R-AWN 1646 | -10/Exiles | Met EX-HEX 1666 | -10/Exiles | Met EX-DEC 1672 | -10/Exiles | Learned location of Zion (-7) 1682 | -10/Exiles | Met EX-BIN 1688 | -10/Exiles | Aligned with FarCom system 1689 | -10/Exiles | Given EX-Vault access code 1705 | -10/Exiles | Opened EX-Vault 1710 | -10/Exiles | Found Trap Reconfigurator 1737 | -10/Exiles | Warned to stay clear of 0b10 Research branches 1791 | -10/Exiles | Discovered exit to Mines (range 14) 1822 | -10/Exiles | Left Exiles lab with Trap Reconfigurator 1822 | -10/Exiles | Entered Mines 1843 | -9/Mines | Met a Derelict bent on vengeance 1858 | -9/Mines | Assembled infested the area 1863 | -9/Mines | Assisted by a Guerilla fighting off Assembled 1914 | -9/Mines | Core integrity fell below 20% 1946 | -9/Mines | Lost 3 allies 1964 | -9/Mines | Discovered new exit (range 7) 1968 | -9/Mines | Identified exit to Materials 2116 | -9/Mines | Build established: Scavenger-Skirmisher 2314 | -9/Mines | Entered Materials 2314 | -8/Materials | Evolved 4 slots: Propulsion x1, Utility x2, Weapon x1 2315 | -8/Materials | Identified exit to Factory 2475 | -8/Materials | Lost 5 parts (2n1u2w) 2538 | -8/Materials | Core integrity fell below 50% 2588 | -8/Materials | Lost 3 parts (2n1w) 2635 | -8/Materials | Core integrity fell below 20% 2651 | -8/Materials | Lost 3 parts (1n2w) 2657 | -8/Materials | Discovered exit to Factory (range 10) 2661 | -8/Materials | Entered Factory 2661 | -7/Factory | Evolved 2 slots: Propulsion x1, Utility x1 2829 | -7/Factory | Fabricated Sensor Array? 2871 | -7/Factory | Build established: Sprinter 3171 | -7/Factory | Build established: Scout 3211 | -7/Factory | Discovered new exit (range 5) 3212 | -7/Factory | Identified exit to Lower Caves 3214 | -7/Factory | Entered Lower Caves 3226 | -7/Lower Caves | A Derelict revealed a hidden shortcut to a safe place 3228 | -7/Lower Caves | Identified exit to Zion 3229 | -7/Lower Caves | Entered Zion 3274 | -7/Zion | Discovered new exit (range 13) 3277 | -7/Zion | Identified exit to Proximity Caves 3293 | -7/Zion | System corruption cleaned by Quarantine Array 3303 | -7/Zion | Learned Factory security intel 3336 | -7/Zion | Found Relay Coupler [Programmer] 3339 | -7/Zion | Found Relay Coupler [Programmer] 3341 | -7/Zion | Found Relay Coupler [Programmer] 3361 | -7/Zion | Learned location of Quarantine (-3) 3406 | -7/Zion | Found CR-A16's Pointy Stick 3419 | -7/Zion | Given A8's code to call for help 3447 | -7/Zion | Rebuked by Imprinter 3458 | -7/Zion | Attempted to imprint without authorization 3458 | -7/Zion | Attacked by Zionites 3502 | -7/Zion | Spotted TV-6KB(B) 3504 | -7/Zion | Spotted C7-DQE(B) 3517 | -7/Zion | Entered Proximity Caves 3522 | -6/Proximity Caves | Build established: Sprinter 3540 | -6/Proximity Caves | Lost 4 parts (1n2u1w) 3615 | -6/Proximity Caves | Spotted B-75 Beast 3646 | -6/Proximity Caves | Lost 4 parts (1p1n2w) 3706 | -6/Proximity Caves | Lost 5 parts (1p2n1u1w) 3718 | -6/Proximity Caves | Discovered new exit (range 7) 3721 | -6/Proximity Caves | Identified exit to Factory 3721 | -6/Proximity Caves | Entered Factory 3721 | -6/Factory | Evolved 2 slots: Utility x1, Weapon x1 3922 | -6/Factory | Build established: Mutant 4538 | -6/Factory | Discovered new exit (range 8) 4541 | -6/Factory | Identified exit to Lower Caves 4550 | -6/Factory | Entered Lower Caves 4613 | -6/Lower Caves | Encountered a Warlord checkpoint 4771 | -6/Lower Caves | Learned 4 Factory zone layouts 5087 | -6/Lower Caves | Lost 4 parts (1p1n1u1w) 5097 | -6/Lower Caves | Attracted the attention of an 0b10 checkpoint 5140 | -6/Lower Caves | Discovered new exit (range 6) 5143 | -6/Lower Caves | Identified exit to Lower Caves 5144 | -6/Lower Caves | Entered another Lower Caves area 5263 | -6/Lower Caves | Learned Factory emergency access door positions 5411 | -6/Lower Caves | Attracted the attention of an 0b10 checkpoint 5446 | -6/Lower Caves | Encountered a Warlord checkpoint 5449 | -6/Lower Caves | Discovered new exit (range 15) 5459 | -6/Lower Caves | Spotted B-75 Beast 5465 | -6/Lower Caves | Identified exit to Data Miner 5465 | -6/Lower Caves | Entered Data Miner 5465 | -6/Data Miner | Discovered new exit (range 6) 5468 | -6/Data Miner | Identified exit to Proximity Caves 5477 | -6/Data Miner | Met Data Miner 5495 | -6/Data Miner | Learned location of Section 7 (-3) 5495 | -6/Data Miner | Acquired the access code to Warlord's prototype stash 5505 | -6/Data Miner | Received God Mode back door access code from Data Miner 5519 | -6/Data Miner | Entered Proximity Caves 5593 | -5/Proximity Caves | Escorted by Enhanced Grunt 5607 | -5/Proximity Caves | Learned location of 1 exit from Factory 5821 | -5/Proximity Caves | Learned 4 Factory zone layouts 5826 | -5/Proximity Caves | Build established: Scavenger-Mutant 5900 | -5/Proximity Caves | Core integrity fell below 50% 5954 | -5/Proximity Caves | Lost 9 parts (1p2n3u3w) 5980 | -5/Proximity Caves | Discovered new exit (range 7) 5982 | -5/Proximity Caves | Attracted the attention of an 0b10 outpost 5982 | -5/Proximity Caves | Core integrity fell below 20% 5983 | -5/Proximity Caves | Entered Factory 5983 | -5/Factory | Evolved 2 slots: Power x1, Propulsion x1 5984 | -5/Factory | Identified exit to Upper Caves 5985 | -5/Factory | Identified exit to Factory 6022 | -5/Factory | Spotted B-75 Beast 6023 | -5/Factory | Enhanced Grunt warped into view, answering call for help 6027 | -5/Factory | Enhanced Grunt warped into view, answering call for help 6119 | -5/Factory | Incoming investigation squad redirected 6188 | -5/Factory | Build established: Mutant 6244 | -5/Factory | Fabricated H-66 Slayer? 6433 | -5/Factory | Entered another Factory area 6433 | -4/Factory | Accompanied by 1 ally 6433 | -4/Factory | Evolved 2 slots: Utility x2 6479 | -4/Factory | Incoming investigation squad redirected 6538 | -4/Factory | Fabricated H-66 Slayer (x2) 6817 | -4/Factory | Discovered new exit (range 10) 6821 | -4/Factory | Identified exit to Research 6842 | -4/Factory | Lost 4 parts (1u3w) 7079 | -4/Factory | Build established: Hacker-Mutant 7437 | -4/Factory | Discovered new exit (range 7) 7439 | -4/Factory | Identified exit to Upper Caves 7441 | -4/Factory | Entered Upper Caves 7538 | -4/Upper Caves | Lost 5 parts (1p4n) 7544 | -4/Upper Caves | Encountered a Warlord checkpoint 7677 | -4/Upper Caves | Core integrity fell below 50% 7729 | -4/Upper Caves | Core integrity fell below 20% 7761 | -4/Upper Caves | Lost 4 parts (1n3u) 7776 | -4/Upper Caves | Destroyed by S-27 Virus with Autogun Last Messages --------------- P-70 Sage knocked back. Enh. Gauss Cannon destroyed. Acquired 90 matter. System corrupted: Matter fused (-10). Acquired 7 matter. System corrupted: Matter fused (-9). UH-R4S(k) breaks down the debris. Acquired 5 matter. Acquired 1 matter. Acquired 3 matter. System corrupted: Matter fused (-5). Slammed into S-27 Virus. Gyrokinetic Inverter destroyed. System corrupted: Matter fused (-5). Acquired 55 matter. Adv. System Shield destroyed. Adv. ECM Suite destroyed. System Shield destroyed. System corrupted: Matter fused (-6). [Achievement: 10k Club] Map ----- +----------------------------------------------------+ | ????????????????????????# ##???### % ##?##### | | ????????????????????????#### #????# ##??## | | ???????????????????????????# ###??# #?## | | ??????????????????????????## ##?#### ##### | | ?????????????????????????## ###### ### % # # | | ?????????????????????????# ## # | | ?????????????????????????# ###### # = | | ?????????????????????????#### ##????# =% | | ????????????????????????????## ##????###### # !# | | ?????????????????????????????# ####??????## ## | | ?????????????????????????????# #???????#####? | | ?????????????????????????????## #??????###???? | | ??????????????????????????????## ###### ### | | ???????????????????????????????#### | | ????????????????????????##???###### | | ???????????????????????## ??## ## s | | ??????????????????????## ?## sss | | ????????????????????### ## ## | | ?????????????????#?## ## #??? | | ?????????????????""#" ## ### ##????? | | ?????????????????"""" #??###???????? | | ?????????????????#"" #????????????? | | ??????????????????#" #????????????? | | ??????????????????### #????????????? | | ????????????????????## #????????????? | | ?????????????????????# @ ##????????????? | | ?????????????????????# ####?????????????? | | ?????????????????????# ##????????????????? | | ?????????????????????## #?????????????????? | | ??????????????????????# #?????????????????? | | ?????????????????????? #?????????????????? | | ????????????????????? #????????????????? | | ???????????????????? #????????????????? | | ????????????????????# ### #????????????????? | | ????????????????????##??#### #????????????????? | | ???????????????????????????? ????????????????? | | ???????????????????????????? ### ???????????????? | | ???????????????????????????? #??# ??????????????? | | ???????????????????????????? #??????????????????? | | ????????????????????????????? ???????????????????? | | ?????????????????????????????????????????????????? | | ?????????????????????????????????????????????????? | | ?????????????????????????????????????????????????? | | ?????????????????????????????????????????????????? | | ?????????????????????????????????????????????????? | | ?????????????????????????????????????????????????? | | ?????????????????????????????????????????????????? | | ?????????????????????????????????????????????????? | | ?????????????????????????????????????????????????? | | ?????????????????????????????????????????????????? | +----------------------------------------------------+ Best States ------------- Heat Dissipation 43 Energy Generation 48 Energy Capacity 360 Matter Stores 300 Matter Capacity 300 Sight Range 18 Robot Scan Range 20 Terrain Scan Range 16 Terrain Scan Density 10 ECM Strength 2 Jamming Range 14 Armor Coverage 600 Resistance: EM 25 Power Shielding 66 Propulsion Shielding 33 Evasion (%) 64 Targeting Accuracy 5 Offensive Hacking 14 Defensive Hacking 38 Item Schematics ----------------- Sensor Array | -10/Materials | Hacked Signal Interpreter | -10/Materials | Hacked Lgt. Armor Plating | -10/Mines | Hacked Combat Drone Bay | -6/Data Miner | Free Lgt. Regenerative Plating | -6/Data Miner | Free Enh. Flexi-carbon Leg | -6/Data Miner | Free Imp. Energy Well | -6/Data Miner | Free Tri-rail Accelerator | -6/Data Miner | Free Centrium Wheel | -6/Data Miner | Free Imp. Phase Shifter | -6/Data Miner | Free Matter Neutralizer | -6/Data Miner | Free Imp. Antigrav System | -6/Data Miner | Free Adv. Heavy Treads | -6/Data Miner | Free Biometal Leg | -6/Data Miner | Free Robot Schematics ------------------ K-01 Serf | -6/Factory | Hacked A-15 Conveyor | -6/Data Miner | Free B-48 Gladiator | -6/Data Miner | Free L-41 Fighter | -6/Data Miner | Free B-60 Warrior | -6/Data Miner | Free H-66 Slayer | -6/Data Miner | Free Fabricated ------------ Sensor Array | x1 | -7/Factory H-66 Slayer | x2 | -5/Factory H-66 Slayer | x2 | -4/Factory Alien Tech Used ----------------- None Achievements -------------- 10k Club Adventurer Brute Force Explorer Help From High Places I Survived The Infestation Just What I Needed Knowing Is Half The Battle My Command Is Your Wish Party Time The Oracle Challenges ------------ None Game ------ Seed SigixDeepFacilitator Manual? 0 Play Time 03:21:10 Cumulative 13.9 hours Start 2024.08.03 @ 17:41:00 End 2024.08.04 @ 12:11:55 Sessions 5 Manual Loads 0 Difficulty Rogue Special Mode None Game No. 9 Rogue 9 Adventurer 0 Explorer 0 Win Type - Total 0 Types 0/0/0/0/0/0/0/0/0 Lore% 21 Gallery% 17 Achievement% 19 Wizard Run 0 Options --------- Layout 1 ASCII 0 Keyboard 1 Movement Numpad Keybinds 1 Fullscreen 1 Font 24/Smallcaps Map View 50x35 Zoom Use 0% Tactical HUD 0 Map Filters NONE Filters NONE Steam 0 RUN: b3dc03da-3436-46e4-a198-99bc7115aca4